bitfinex/quotes_BTCUSD_20230114
["timestamp","ask_amount","ask_price","bid_price","bid_amount"]
[1673698322972,0.012,20679.0,20676.0,0.21780232]
[1673698323229,0.012,20679.0,20676.0,0.52067112]
[1673698323512,0.012,20679.0,20676.0,0.52047083]
[1673698323779,0.012,20679.0,20676.0,0.4345695]
[1673698324544,0.012,20679.0,20676.0,0.75855779]
[1673698324545,0.0122,20679.0,20676.0,0.75855779]
[1673698324789,0.0122,20679.0,20677.0,0.61845576]
[1673698324790,0.0002,20679.0,20677.0,0.61845576]
[1673698325034,0.0132,20679.0,20678.0,0.53798447]
[1673698325262,0.0132,20679.0,20678.0,1.05721488]
[1673698325551,0.0132,20679.0,20678.0,1.34557776]
[1673698325804,0.0294205,20681.0,20678.0,1.34557776]
[1673698326053,0.009,20679.0,20678.0,0.77196788]
[1673698326293,0.0294205,20681.0,20678.0,1.34575016]
[1673698326545,0.002,20679.0,20678.0,0.99510818]
[1673698326790,0.002,20679.0,20678.0,1.31012518]
[1673698327033,0.002,20679.0,20678.0,1.3517553]
[1673698327773,0.0002,20680.0,20678.0,1.3457553]
[1673698328023,0.002,20679.0,20678.0,1.13731452]
[1673698328268,0.002,20679.0,20678.0,1.4939632]
[1673698328756,0.0002,20680.0,20678.0,1.9668632]
[1673698328995,0.0022,20680.0,20679.0,0.40515594]
[1673698329238,0.0002,20680.0,20679.0,0.696568]
[1673698329495,0.0294205,20681.0,20679.0,1.09433396]
[1673698329736,0.0294205,20681.0,20680.0,0.57376745]
[1673698330004,0.0294205,20681.0,20680.0,1.05732545]
[1673698330246,0.0294205,20681.0,20680.0,1.34687288]
[1673698330496,0.0294205,20681.0,20680.0,1.05732545]
[1673698330742,0.0294205,20681.0,20680.0,1.34687288]
[1673698331034,0.0294205,20681.0,20680.0,1.34686177]
[1673698331281,0.0294205,20681.0,20680.0,1.58031416]
[1673698331528,0.1534205,20681.0,20680.0,1.58631416]
[1673698332234,0.1534205,20681.0,20680.0,1.58638358]
[1673698332481,0.1534205,20681.0,20680.0,1.44167725]
[1673698333201,0.1534205,20681.0,20680.0,1.57554031]
[1673698333476,0.1534205,20681.0,20680.0,1.57562299]
[1673698333707,0.1534205,20681.0,20680.0,1.97562299]
[1673698333948,0.1534205,20681.0,20680.0,1.6136887]
[1673698334926,0.1534205,20681.0,20680.0,1.5136887]
[1673698335192,0.0294205,20681.0,20680.0,1.86969718]
[1673698335425,0.0404205,20681.0,20680.0,1.5776887]
[1673698336659,0.0404205,20681.0,20680.0,1.53514367]
[1673698336913,0.0404205,20681.0,20680.0,2.18659118]
[1673698337385,0.0404205,20681.0,20680.0,1.82468194]
[1673698337883,0.0404205,20681.0,20680.0,2.18659118]
[1673698338139,0.0404205,20681.0,20680.0,1.92913621]
[1673698338384,0.0404205,20681.0,20680.0,2.19636317]
[1673698338644,0.0404205,20681.0,20680.0,2.19420867]
[1673698338921,0.0404205,20681.0,20680.0,2.22913094]
[1673698340201,0.0404205,20681.0,20680.0,2.19226657]
[1673698340949,0.0404205,20681.0,20680.0,1.92913094]
[1673698341192,0.0404205,20681.0,20680.0,2.22913094]
[1673698341954,0.0404205,20681.0,20680.0,1.92913094]
[1673698342196,0.0404205,20681.0,20680.0,2.22913094]
[1673698343727,0.0404205,20681.0,20680.0,1.92913094]
[1673698344461,0.0404205,20681.0,20680.0,1.93018616]
[1673698344709,0.0404205,20681.0,20680.0,2.23018616]
[1673698345189,0.04034661,20681.0,20680.0,2.23018616]
[1673698345460,0.04034661,20681.0,20680.0,1.86827692]
[1673698345954,0.04034661,20681.0,20680.0,2.37811743]
[1673698346197,0.04034661,20681.0,20680.0,1.94597692]
[1673698347441,0.04034661,20681.0,20680.0,2.42317861]
[1673698349458,0.03631195,20681.0,20680.0,2.42317861]
[1673698351445,0.03631195,20681.0,20680.0,2.78475972]
[1673698352170,0.03631195,20681.0,20680.0,2.78475739]
[1673698352417,0.03631195,20681.0,20680.0,2.42317861]
[1673698352649,0.03631195,20681.0,20680.0,2.34547861]
[1673698355543,0.03556575,20681.0,20680.0,2.34547861]
[1673698355788,0.03268076,20681.0,20680.0,2.34547861]
[1673698357761,0.03268076,20681.0,20680.0,2.77761912]
[1673698358009,0.03268076,20681.0,20680.0,2.34547861]
[1673698358265,0.03268076,20681.0,20680.0,2.77761912]
[1673698363506,0.03268076,20681.0,20680.0,2.85481912]
[1673698363753,0.03268076,20681.0,20680.0,2.85644464]
[1673698364007,0.03268076,20681.0,20680.0,2.42267861]
[1673698365734,0.0002,20682.0,20681.0,0.1]
[1673698365966,0.00643544,20683.0,20682.0,0.00849805]
[1673698366206,0.00643544,20683.0,20682.0,1.85878844]
[1673698367619,0.00643544,20683.0,20682.0,1.99778844]
[1673698367877,0.00643544,20683.0,20682.0,2.43187282]
[1673698368356,0.00643544,20683.0,20682.0,1.99778844]
[1673698369615,0.90884493,20686.0,20683.0,0.1]
[1673698369855,0.90884493,20686.0,20685.0,0.43911423]
[1673698370086,0.90884493,20686.0,20685.0,2.05628262]
[1673698370351,0.90884493,20686.0,20685.0,2.30793284]
[1673698370814,0.90884493,20686.0,20685.0,2.05628262]
[1673698371298,0.90884493,20686.0,20685.0,2.24904053]
[1673698371519,0.90884493,20686.0,20685.0,2.08904053]
[1673698371744,0.90884493,20686.0,20685.0,2.38904053]
[1673698372063,0.90884493,20686.0,20685.0,2.19628262]
[1673698373058,0.90884493,20686.0,20685.0,2.44454579]
[1673698373296,0.90384493,20686.0,20685.0,2.44454579]
[1673698373814,0.90384493,20686.0,20685.0,2.42227058]
[1673698374057,0.90384493,20686.0,20685.0,2.19733759]
[1673698374513,0.90384493,20686.0,20685.0,2.48661545]
[1673698374788,0.90384493,20686.0,20685.0,2.70511935]
[1673698375064,0.90384493,20686.0,20685.0,2.62761935]
[1673698375474,0.90384493,20686.0,20685.0,2.40911545]
[1673698375723,0.90384493,20686.0,20685.0,2.62114273]
[1673698375960,0.90384493,20686.0,20685.0,2.40911545]
[1673698376212,0.90384493,20686.0,20685.0,2.6287141]
[1673698376430,0.90384493,20686.0,20685.0,2.62591844]
[1673698376858,0.90384493,20686.0,20685.0,2.40911545]
[1673698377036,0.90384493,20686.0,20685.0,2.61238443]
[1673698377259,0.90384493,20686.0,20685.0,2.40911545]
[1673698377491,0.90384493,20686.0,20685.0,1.75822336]
[1673698377700,0.90384493,20686.0,20685.0,2.19216044]
[1673698379424,0.90384493,20686.0,20685.0,1.75822336]
[1673698380212,0.90384493,20686.0,20685.0,1.18943274]
[1673698380563,0.90384493,20686.0,20685.0,1.55092658]
[1673698380816,0.90384493,20686.0,20685.0,1.84012877]
[1673698381529,0.90384493,20686.0,20685.0,1.85092658]
[1673698383210,0.90384493,20686.0,20685.0,1.55092658]
[1673698383709,0.90384493,20686.0,20685.0,1.85092658]
[1673698384009,0.90384493,20686.0,20685.0,1.64146054]
[1673698384264,0.90384493,20686.0,20685.0,1.2799667]
[1673698384505,0.90384493,20686.0,20685.0,1.52535575]
[1673698384745,0.90384493,20686.0,20685.0,1.88688572]
[1673698384994,0.90384493,20686.0,20685.0,1.75716839]
[1673698385235,0.90384493,20686.0,20685.0,2.19110547]
[1673698385489,0.90384493,20686.0,20685.0,1.75716839]
[1673698385983,0.90384493,20686.0,20685.0,1.99711864]
[1673698388702,0.90384493,20686.0,20685.0,2.05867614]
[1673698388989,0.90384493,20686.0,20685.0,1.87073641]
[1673698391712,0.90384493,20686.0,20685.0,1.58147445]
[1673698391967,0.90384493,20686.0,20685.0,1.87083974]
[1673698392206,0.90384493,20686.0,20685.0,1.58147445]
[1673698392459,0.90384493,20686.0,20685.0,1.88147445]
[1673698393203,0.90384493,20686.0,20685.0,1.58147445]
[1673698393445,0.00680458,20687.0,20685.0,1.58147445]
[1673698393689,0.01875221,20686.0,20685.0,1.26057645]
[1673698393981,0.01875221,20686.0,20685.0,1.58157676]
[1673698394229,0.01875221,20686.0,20685.0,1.88157676]
[1673698394476,0.01875221,20686.0,20685.0,1.88177021]
[1673698394725,0.01875221,20686.0,20685.0,1.28006901]
[1673698395216,0.01875221,20686.0,20685.0,1.84317203]
[1673698395470,0.01687699,20686.0,20685.0,1.8351707]
[1673698395727,0.01687699,20686.0,20685.0,1.28006901]
[1673698395970,0.01687699,20686.0,20685.0,1.49682656]
[1673698396226,0.01687699,20686.0,20685.0,1.35682656]
[1673698396476,0.01687699,20686.0,20685.0,1.27806901]
[1673698396727,0.01687699,20686.0,20685.0,1.14006901]
[1673698396968,0.01687699,20686.0,20685.0,1.51615608]
[1673698397232,0.01687699,20686.0,20685.0,1.61580213]
[1673698397477,0.01687699,20686.0,20685.0,1.51580213]
[1673698397724,0.01687699,20686.0,20685.0,1.61580213]
[1673698398228,0.01687699,20686.0,20685.0,1.37680213]
[1673698398477,0.09242699,20686.0,20685.0,1.52623152]
[1673698398732,0.09242699,20686.0,20685.0,0.68126093]
[1673698398996,0.09242699,20686.0,20685.0,0.53650682]
[1673698399242,0.01687699,20686.0,20685.0,0.53650682]
[1673698399745,0.01687699,20686.0,20685.0,0.25274612]
[1673698399991,0.01687699,20686.0,20685.0,0.68126093]
[1673698400735,0.01687699,20686.0,20685.0,0.39174612]
[1673698401494,0.01687699,20686.0,20685.0,0.53652862]
[1673698401741,0.18068664,20687.0,20685.0,0.53652849]
[1673698402000,0.18068664,20687.0,20685.0,0.139]
[1673698402001,0.1558,20686.0,20685.0,0.139]
[1673698402238,2.08763436,20686.0,20685.0,0.139]
[1673698402502,1.99760284,20686.0,20681.0,0.14445761]
[1673698402750,1.10452952,20685.0,20681.0,0.14445761]
[1673698402991,1.10452952,20685.0,20679.0,0.50665092]
[1673698402992,0.1555,20682.0,20679.0,0.50665092]
[1673698403244,0.26792595,20681.0,20679.0,0.54229744]
[1673698403746,0.0772,20681.0,20680.0,0.21713611]
[1673698403997,0.078,20681.0,20679.0,0.21503049]
[1673698404494,0.27588705,20681.0,20679.0,0.21503049]
[1673698404732,0.27588705,20681.0,20678.0,0.52001622]
[1673698404733,0.27588705,20681.0,20678.0,0.23050141]
[1673698405019,0.27588705,20681.0,20678.0,0.48803312]
[1673698405267,0.40588705,20681.0,20678.0,0.48784312]
[1673698405512,0.27588705,20681.0,20678.0,0.81295533]
[1673698405763,0.27588705,20681.0,20678.0,0.27070701]
[1673698406258,0.33988705,20681.0,20678.0,0.27070701]
[1673698408030,0.33988705,20681.0,20679.0,0.25926903]
[1673698408998,0.27588705,20681.0,20679.0,0.25926903]
[1673698409235,0.33488705,20681.0,20679.0,0.26526903]
[1673698412472,0.0777,20680.0,20679.0,0.26526903]
[1673698413206,0.33488705,20681.0,20679.0,0.26526903]
[1673698413716,0.19933688,20680.0,20679.0,0.006]
[1673698414499,0.19933688,20680.0,20678.0,0.22169339]
[1673698414739,0.25833688,20680.0,20679.0,0.006]
[1673698416736,1.22827674,20680.0,20679.0,0.006]
[1673698416986,0.96750725,20680.0,20679.0,0.006]
[1673698417229,1.32827674,20680.0,20679.0,0.006]
[1673698417472,1.42654933,20680.0,20678.0,0.0131753]
[1673698417742,0.1555,20679.0,20678.0,0.0131753]
[1673698417994,1.09130074,20679.0,20678.0,0.0131753]
[1673698418240,1.19130074,20679.0,20678.0,0.0131753]
[1673698418488,1.37050855,20679.0,20678.0,0.0131753]
[1673698418729,1.19130074,20679.0,20678.0,0.0131753]
[1673698419002,1.51530479,20679.0,20678.0,0.0171753]
[1673698419250,1.19130074,20679.0,20678.0,0.0131753]
[1673698419498,1.48517402,20679.0,20678.0,0.0171753]
[1673698419756,0.93295528,20679.0,20678.0,0.0171753]
[1673698422224,0.85525528,20679.0,20678.0,0.0171753]
[1673698422481,0.136,20679.0,20678.0,0.0171753]
[1673698423215,0.2801901,20680.0,20678.0,0.0131753]
[1673698423483,0.2801901,20680.0,20678.0,0.0171753]
[1673698423484,0.136,20679.0,20678.0,0.0171753]
[1673698423750,0.49138595,20679.0,20678.0,0.0171753]
[1673698424021,0.75287874,20679.0,20678.0,0.0171753]
[1673698424262,0.85287874,20679.0,20678.0,0.0171753]
[1673698424549,0.71687874,20679.0,20678.0,0.0131753]
[1673698424804,0.71687874,20679.0,20678.0,0.0171753]
[1673698424805,1.20046074,20679.0,20678.0,0.0171753]
[1673698425060,1.20046074,20679.0,20678.0,0.0131753]
[1673698425308,1.63646074,20679.0,20678.0,0.0171753]
[1673698425562,1.33646074,20679.0,20678.0,0.0171753]
[1673698425810,1.63646074,20679.0,20678.0,0.0171753]
[1673698426057,1.33646074,20679.0,20678.0,0.01706747]
[1673698427283,1.63646074,20679.0,20678.0,0.01706747]
[1673698427530,1.33646074,20679.0,20678.0,0.01706747]
[1673698427775,1.63646074,20679.0,20678.0,0.01706747]
[1673698428793,2.5748974,20679.0,20678.0,7.47e-06]
[1673698429047,0.03983801,20677.0,20675.0,0.01440745]
[1673698429290,1.045004,20676.0,20675.0,0.01440745]
[1673698429546,1.65212274,20676.0,20675.0,0.01440745]
[1673698430048,1.75212274,20676.0,20675.0,0.01440745]
[1673698430294,1.65212274,20676.0,20675.0,0.01940745]
[1673698430559,1.65212274,20676.0,20664.0,0.36003774]
[1673698430560,0.24546058,20675.0,20664.0,0.36003774]
[1673698430808,0.24546058,20675.0,20662.0,0.52465204]
[1673698430809,0.6,20665.0,20662.0,0.37932497]
[1673698431130,0.10647173,20664.0,20662.0,0.14441432]
[1673698431405,2.01546404,20664.0,20662.0,0.14441432]
[1673698431648,0.0773,20663.0,20662.0,0.14441432]
[1673698431921,0.0773,20663.0,20662.0,0.40353184]
[1673698432166,0.1773,20663.0,20662.0,0.40353184]
[1673698432418,0.1773,20663.0,20662.0,0.14441432]
[1673698432707,0.81889243,20663.0,20662.0,0.14441432]
[1673698432937,1.41212248,20663.0,20662.0,0.14441432]
[1673698433207,1.67696757,20663.0,20662.0,0.14441432]
[1673698433448,1.67696757,20663.0,20658.0,0.00019]
[1673698433449,0.14439568,20662.0,20658.0,0.00019]
[1673698433692,0.00876,20659.0,20658.0,0.00019]
[1673698433934,0.00876,20659.0,20656.0,0.21609396]
[1673698433935,1.16758595,20659.0,20656.0,0.21609396]
[1673698434183,0.078,20657.0,20656.0,0.21609396]
[1673698434439,2.14297811,20657.0,20656.0,0.21609396]
[1673698434683,1.48802292,20657.0,20656.0,0.21609396]
[1673698434928,2.03808108,20657.0,20656.0,0.21609396]
[1673698435443,0.1,20656.0,20654.0,1.2]
[1673698435940,1.068288,20655.0,20654.0,1.2]
[1673698436191,0.968288,20655.0,20654.0,1.2]
[1673698436453,1.0673232,20655.0,20654.0,1.2]
[1673698436697,1.9514232,20655.0,20654.0,1.2]
[1673698437440,1.9514232,20655.0,20653.0,0.00708533]
[1673698437441,0.1,20654.0,20653.0,0.00708533]
[1673698437687,1.5526689,20654.0,20653.0,0.00708533]
[1673698437933,1.93301919,20654.0,20653.0,0.00708533]
[1673698438434,2.28441919,20654.0,20653.0,0.00708533]
[1673698438687,0.1,20653.0,20647.0,0.01474413]
[1673698438945,0.1,20653.0,20645.0,0.20994971]
[1673698438946,0.00876,20648.0,20646.0,0.01474413]
[1673698439197,0.484287,20649.0,20648.0,0.00019]
[1673698439437,0.0779,20649.0,20648.0,0.00019]
[1673698439942,0.35693061,20649.0,20648.0,0.00019]
[1673698440204,0.89229285,20649.0,20648.0,0.00019]
[1673698440456,0.09680361,20647.0,20646.0,0.01474413]
[1673698440712,0.968662,20647.0,20646.0,0.02948826]
[1673698440958,0.720284,20649.0,20646.0,0.02948826]
[1673698440959,0.136,20649.0,20646.0,0.02948826]
[1673698441710,0.19563908,20652.0,20647.0,0.08590133]
[1673698441955,0.137,20649.0,20648.0,0.08590133]
[1673698442214,0.01763908,20652.0,20651.0,0.01474413]
[1673698442462,0.112,20649.0,20648.0,0.16145133]
[1673698442712,0.112,20649.0,20648.0,0.09029413]
[1673698442964,0.01763908,20652.0,20648.0,0.41143921]
[1673698443214,0.01763908,20652.0,20649.0,0.2137824]
[1673698443471,0.01763908,20652.0,20651.0,0.09029413]
[1673698444178,0.01763908,20652.0,20651.0,0.28181807]
[1673698444469,0.01763908,20652.0,20651.0,0.16829413]
[1673698444719,0.01763908,20652.0,20651.0,0.09029413]
[1673698444976,0.01763908,20652.0,20651.0,0.51148113]
[1673698444977,0.12963908,20652.0,20651.0,0.51148113]
[1673698445224,0.01763908,20652.0,20651.0,0.41148113]
[1673698445485,0.01763908,20652.0,20651.0,0.71148113]
[1673698445730,0.01763908,20652.0,20651.0,0.81148113]
[1673698445977,0.12963908,20652.0,20651.0,0.81148113]
[1673698446218,0.12963908,20652.0,20651.0,0.88948113]
[1673698446465,0.01763908,20652.0,20651.0,0.58948113]
[1673698446726,3.908e-05,20652.0,20651.0,0.97598113]
[1673698446972,3.908e-05,20652.0,20651.0,1.45318282]
[1673698447468,0.01403908,20652.0,20651.0,1.45318282]
[1673698447720,3.908e-05,20652.0,20651.0,1.45318282]
[1673698447968,0.01403908,20652.0,20651.0,1.53118282]
[1673698448213,3.908e-05,20652.0,20651.0,0.41148113]
[1673698448462,3.908e-05,20652.0,20651.0,0.01474413]
[1673698448463,0.20476503,20652.0,20651.0,0.01474413]
[1673698448736,0.01403908,20652.0,20651.0,0.01474413]
[1673698448978,0.01403908,20652.0,20651.0,0.09059351]
[1673698449243,0.02803908,20652.0,20651.0,0.09059351]
[1673698449499,0.02803908,20652.0,20651.0,0.34150578]
[1673698449745,0.02803908,20652.0,20651.0,0.2656564]
[1673698450235,3.908e-05,20652.0,20651.0,0.2656564]
[1673698450979,0.00903908,20652.0,20651.0,0.2656564]
[1673698451221,3.908e-05,20652.0,20651.0,0.2656564]
[1673698451466,0.00903908,20652.0,20651.0,0.2656564]
[1673698451708,0.10903908,20652.0,20651.0,0.01474413]
[1673698451960,0.02948825,20650.0,20648.0,0.22204473]
[1673698452216,0.2202142,20650.0,20648.0,0.22204473]
[1673698452730,0.02948825,20650.0,20648.0,0.22204473]
[1673698453456,0.02948825,20650.0,20646.0,0.01474413]
[1673698453712,0.7866717,20650.0,20646.0,0.24083685]
[1673698453955,0.0773,20647.0,20646.0,0.01474413]
[1673698454206,1.20681445,20647.0,20646.0,0.01474413]
[1673698454455,1.0160885,20647.0,20646.0,0.01474413]
[1673698454711,1.4248485,20647.0,20646.0,0.01474413]
[1673698455454,0.04422825,20645.0,20644.0,0.01944637]
[1673698455714,1.65196225,20645.0,20644.0,0.01944637]
[1673698455966,1.65196225,20645.0,20644.0,6.37e-06]
[1673698455967,2.5971457,20645.0,20644.0,6.37e-06]
[1673698456213,3.00789966,20645.0,20644.0,6.37e-06]
[1673698456465,3.08651965,20645.0,20644.0,6.37e-06]
[1673698456707,3.35036186,20645.0,20644.0,6.37e-06]
[1673698456959,3.14489966,20645.0,20644.0,6.37e-06]
[1673698457200,3.63060135,20645.0,20644.0,6.37e-06]
[1673698457717,3.49360135,20645.0,20644.0,6.37e-06]
[1673698457983,3.49360135,20645.0,20629.0,0.19776112]
[1673698457984,6e-05,20642.0,20629.0,0.19776112]
[1673698458228,0.00876,20634.0,20633.0,0.28723919]
[1673698458477,0.19072595,20634.0,20633.0,0.28723919]
[1673698458746,0.67536295,20634.0,20633.0,0.28742814]
[1673698458988,0.484577,20637.0,20634.0,0.26526199]
[1673698459232,1.05088921,20636.0,20634.0,0.26526199]
[1673698459497,1.05088921,20636.0,20633.0,0.02749162]
[1673698459498,0.35313394,20635.0,20633.0,0.02749162]
[1673698459746,0.584637,20634.0,20633.0,0.02749162]
[1673698459997,1.16093139,20634.0,20633.0,0.02749162]
[1673698460249,1.46900878,20634.0,20633.0,0.02749162]
[1673698460503,0.156,20634.0,20633.0,0.27555937]
[1673698460765,0.1,20634.0,20633.0,0.19723742]
[1673698461015,0.136,20634.0,20633.0,0.19723742]
[1673698461270,0.56628521,20636.0,20629.0,1.084735]
[1673698461515,0.19072595,20635.0,20633.0,0.19670036]
[1673698461770,0.0002,20634.0,20633.0,0.19670036]
[1673698462019,0.14555564,20633.0,20628.0,0.019391]
[1673698462280,0.54307166,20632.0,20628.0,0.2838664]
[1673698462529,0.54307166,20632.0,20628.0,0.019391]
[1673698462530,0.1,20630.0,20628.0,0.019391]
[1673698462779,0.67547995,20629.0,20628.0,0.019391]
[1673698463038,1.32982913,20629.0,20628.0,0.019391]
[1673698463295,1.32982913,20629.0,20628.0,0.021391]
[1673698463296,1.13910318,20629.0,20628.0,0.021391]
[1673698463545,1.42982913,20629.0,20628.0,1e-06]
[1673698463809,0.860254,20629.0,20628.0,0.001]
[1673698464052,0.860254,20629.0,20628.0,0.19946786]
[1673698464053,0.1,20629.0,20628.0,0.19946786]
[1673698464306,0.237,20629.0,20628.0,0.00106786]
[1673698464566,0.137,20629.0,20628.0,0.07655]
[1673698464809,0.15095031,20629.0,20628.0,0.07655]
[1673698465057,0.15095031,20629.0,20628.0,0.33567629]
[1673698465325,0.15095031,20629.0,20628.0,0.397737]
[1673698465849,0.15095031,20629.0,20628.0,0.74743031]
[1673698466096,0.21979129,20629.0,20626.0,0.02160537]
[1673698466338,0.21979129,20629.0,20620.0,0.01656867]
[1673698466339,1.14564462,20627.0,20620.0,0.01656867]
[1673698466596,1.15440462,20627.0,20620.0,0.01656867]
[1673698466851,1.15440462,20627.0,20615.0,0.02900173]
[1673698466852,0.00876,20623.0,20615.0,0.02900173]
[1673698467114,0.19072595,20622.0,20618.0,0.1317]
[1673698467366,0.44775476,20625.0,20620.0,0.002]
[1673698467367,0.19072595,20621.0,20620.0,0.002]
[1673698467618,0.90729677,20621.0,20616.0,0.24572772]
[1673698467865,0.51203395,20620.0,20617.0,0.24866451]
[1673698468115,0.19072595,20619.0,20615.0,0.02900173]
[1673698468448,1.99560224,20618.0,20615.0,0.02900173]
[1673698468687,1.99560224,20618.0,20603.0,0.00371222]
[1673698468688,0.07277888,20614.0,20603.0,0.00371222]
[1673698468944,0.00876,20606.0,20603.0,0.00371222]
[1673698469255,0.44384674,20610.0,20607.0,0.22772467]
[1673698469439,0.44384674,20610.0,20606.0,0.2469477]
[1673698469440,0.806539,20609.0,20606.0,0.2469477]
[1673698469703,0.67595695,20609.0,20600.0,0.00171222]
[1673698469949,0.19072595,20608.0,20607.0,0.47720169]
[1673698470213,0.07277888,20614.0,20607.0,2.39569509]
[1673698470465,0.07277888,20614.0,20608.0,0.08590133]
[1673698470466,0.26350483,20614.0,20608.0,0.08590133]
[1673698470722,0.07277888,20614.0,20610.0,0.02160537]
[1673698470974,0.07277888,20614.0,20610.0,0.62160537]
[1673698471224,0.26627428,20621.0,20610.0,0.62160537]
[1673698471225,0.26627428,20621.0,20611.0,0.51593882]
[1673698471476,6e-05,20620.0,20618.0,0.1315]
[1673698471732,6e-05,20620.0,20619.0,0.30018333]
[1673698472253,6e-05,20620.0,20619.0,0.214282]
[1673698472519,0.01406,20620.0,20619.0,0.30018333]
[1673698472781,0.01406,20620.0,20619.0,0.645982]
[1673698473033,0.01406,20620.0,20619.0,0.8433802]
[1673698473286,6e-05,20620.0,20619.0,0.8373802]
[1673698473538,6e-05,20620.0,20619.0,1.41658189]
[1673698473539,0.036,20620.0,20619.0,1.41658189]
[1673698473796,0.0002,20622.0,20619.0,2.07308189]
[1673698474061,0.0002,20622.0,20620.0,1.26216769]
[1673698474304,0.0002,20622.0,20621.0,1.61169541]
[1673698474566,0.0002,20622.0,20621.0,2.14279541]
[1673698475069,0.013,20622.0,20621.0,2.14279541]
[1673698475566,0.19072595,20622.0,20621.0,0.471047]
[1673698475813,0.013,20622.0,20621.0,0.508047]
[1673698476060,0.013,20622.0,20621.0,0.50364415]
[1673698476311,0.19072595,20622.0,20621.0,0.208247]
[1673698476579,0.19072595,20622.0,20616.0,0.00019]
[1673698476580,0.91795871,20620.0,20616.0,0.00019]
[1673698476826,0.19072595,20619.0,20612.0,0.07707792]
[1673698477075,0.19072595,20619.0,20612.0,0.0233235]
[1673698477076,1.08029169,20618.0,20612.0,0.0233235]
[1673698477319,0.19072595,20617.0,20612.0,0.0233235]
[1673698477568,0.61205495,20616.0,20612.0,0.0233235]
[1673698477813,0.52082495,20615.0,20612.0,0.0233235]
[1673698478076,0.53653674,20616.0,20612.0,0.0233235]
[1673698478077,0.1,20616.0,20612.0,0.0233235]
[1673698478321,0.321329,20615.0,20613.0,0.19022284]
[1673698478561,0.91795871,20620.0,20614.0,0.02135463]
[1673698478808,0.91795871,20620.0,20615.0,0.08590133]
[1673698479061,0.91795871,20620.0,20616.0,0.08590133]
[1673698479307,0.91795871,20620.0,20617.0,0.08590133]
[1673698479550,0.91795871,20620.0,20614.0,0.02135463]
[1673698479551,0.91795871,20620.0,20618.0,0.09449146]
[1673698480045,0.91795871,20620.0,20618.0,0.00859013]
[1673698480544,0.91795871,20620.0,20618.0,0.00845737]
[1673698480796,0.91795871,20620.0,20619.0,0.25964532]
[1673698480797,1.05395871,20620.0,20619.0,0.25964532]
[1673698481044,0.91795871,20620.0,20619.0,0.28645559]
[1673698481284,0.93195871,20620.0,20619.0,0.28645559]
[1673698481535,0.93195871,20620.0,20619.0,0.25964532]
[1673698481783,0.93195871,20620.0,20618.0,0.006]
[1673698481784,0.25915594,20619.0,20618.0,0.006]
[1673698482049,0.25915594,20619.0,20615.0,0.28125885]
[1673698482294,0.91795871,20620.0,20614.0,0.01635463]
[1673698482295,0.19072595,20618.0,20614.0,0.01635463]
[1673698482545,0.19072595,20617.0,20612.0,0.0235135]
[1673698482826,0.91795871,20620.0,20612.0,0.0235135]
[1673698482827,0.19072595,20616.0,20612.0,0.0235135]
[1673698483073,0.19072595,20615.0,20612.0,0.0235135]
[1673698483327,0.1,20613.0,20612.0,0.0235135]
[1673698483575,0.29072595,20613.0,20612.0,0.0235135]
[1673698483882,0.321329,20613.0,20612.0,0.0235135]
[1673698484123,0.23089841,20616.0,20613.0,0.24528578]
[1673698484392,0.40391169,20618.0,20612.0,0.0235135]
[1673698484393,0.136,20613.0,20612.0,0.0235135]
[1673698484656,0.321329,20613.0,20612.0,0.0233235]
[1673698484911,0.457329,20613.0,20612.0,0.0233235]
[1673698485413,0.321329,20613.0,20612.0,0.0233235]
[1673698485683,0.456329,20613.0,20612.0,0.0233235]
[1673698485943,0.67782292,20613.0,20612.0,0.0233235]
[1673698486194,0.68147078,20613.0,20612.0,0.0233235]
[1673698486471,0.321329,20613.0,20612.0,0.0233235]
[1673698486723,0.65784473,20613.0,20612.0,0.0233235]
[1673698486984,0.757329,20613.0,20612.0,0.0233235]
[1673698487230,0.892329,20613.0,20612.0,0.0233235]
[1673698487491,0.421329,20613.0,20612.0,0.0233235]
[1673698487726,0.421329,20613.0,20612.0,0.0183235]
[1673698487727,0.457329,20613.0,20612.0,0.0183235]
[1673698487979,0.321329,20613.0,20612.0,0.0183235]
[1673698488241,0.457329,20613.0,20612.0,0.0183235]
[1673698488496,0.54895038,20613.0,20612.0,0.0183235]
[1673698489474,0.457329,20613.0,20612.0,0.04423709]
[1673698489725,0.26486575,20614.0,20612.0,0.04423709]
[1673698490017,0.136,20613.0,20612.0,0.04423709]
[1673698490257,0.50486681,20617.0,20612.0,0.0183235]
[1673698490512,0.136,20613.0,20612.0,0.10422483]
[1673698490784,0.815179,20616.0,20607.0,0.00019]
[1673698490785,0.04060341,20609.0,20607.0,0.00019]
[1673698491041,0.51205495,20608.0,20607.0,0.00019]
[1673698491273,0.76854419,20608.0,20607.0,0.00019]
[1673698491766,0.57781824,20608.0,20607.0,0.00019]
[1673698492016,0.57781824,20608.0,20606.0,0.26743304]
[1673698492265,0.25648924,20608.0,20606.0,0.26743304]
[1673698492508,0.321329,20607.0,20606.0,0.25743304]
[1673698492760,0.321329,20607.0,20606.0,0.02807565]
[1673698493010,0.136,20608.0,20605.0,0.0233235]
[1673698493265,0.04060341,20609.0,20606.0,0.20844]
[1673698493513,0.136,20607.0,20606.0,0.20844]
[1673698493768,0.04060341,20609.0,20606.0,1.47091869]
[1673698494030,0.04060341,20609.0,20607.0,0.97515621]
[1673698494283,0.04060341,20609.0,20607.0,0.59795452]
[1673698494525,0.04060341,20609.0,20608.0,0.693663]
[1673698494783,0.04060341,20609.0,20608.0,0.825363]
[1673698495041,0.04060341,20609.0,20608.0,1.125363]
[1673698495288,0.00339165,20639.0,20608.0,1.125363]
[1673698495289,0.20254674,20619.0,20609.0,0.1]
[1673698495547,0.20254674,20619.0,20612.0,0.970301]
[1673698495794,0.20254674,20619.0,20613.0,0.508344]
[1673698496092,0.20254674,20619.0,20614.0,0.208332]
[1673698496360,0.0002,20617.0,20613.0,0.916817]
[1673698496584,0.0002,20617.0,20615.0,0.485079]
[1673698496838,0.0002,20617.0,20616.0,0.37388117]
[1673698497129,0.0002,20617.0,20615.0,0.24609618]
[1673698497646,0.137,20619.0,20616.0,0.20831]
[1673698497899,0.137,20619.0,20616.0,0.485044]
[1673698498145,0.137,20619.0,20618.0,0.1]
[1673698498426,0.92071183,20620.0,20618.0,0.1]
[1673698498680,0.92071183,20620.0,20619.0,0.208273]
[1673698498945,0.92071183,20620.0,20619.0,0.40969813]
[1673698499194,0.92071183,20620.0,20619.0,0.20142513]
[1673698499464,0.92071183,20620.0,20619.0,0.49804106]
[1673698499750,0.99071183,20620.0,20619.0,0.50184106]
[1673698499967,0.92071183,20620.0,20619.0,0.49784106]
[1673698500212,0.92071183,20620.0,20619.0,0.50084106]
[1673698500474,1.05571183,20620.0,20619.0,0.50084106]